fUSD/lending_fUSD_20240501
["ID","MTS","AMOUNT","RATE_DAILY","PERIOD"]
[325154905,1714542647623,-500.0,0.00011232,2]
[325154906,1714542647633,-500.0,0.00011232,2]
[325154907,1714542647642,-500.0,0.00011232,2]
[325154908,1714542647652,-500.0,0.00011232,2]
[325154909,1714542647661,-1188.74,0.00011232,2]
[325154910,1714542647670,-500.0,0.00011232,2]
[325154911,1714542647681,-500.0,0.00011232,2]
[325154912,1714542647691,-500.0,0.00011232,2]
[325154913,1714542647701,-500.0,0.00011232,2]
[325154914,1714542647710,-508.89529184,0.00011232,2]
[325154915,1714542647719,-500.0,0.00011232,2]
[325154916,1714542647729,-500.0,0.00011232,2]
[325154917,1714542647738,-500.0,0.00011232,2]
[325154918,1714542647747,-500.0,0.00011232,2]
[325154919,1714542647757,-500.0,0.00011232,2]
[325154920,1714542647766,-500.0,0.00011232,2]
[325154921,1714542647775,-500.0,0.00011232,2]
[325154922,1714542647784,-536.86574579,0.00011232,2]
[325154923,1714542647793,-500.0,0.00011232,2]
[325154924,1714542647803,-500.0,0.00011232,2]
[325154925,1714542647814,-500.0,0.00011232,2]
[325154926,1714542647824,-506.41573105,0.00011232,2]
[325154927,1714542647833,-500.0,0.00011232,2]
[325154928,1714542647842,-500.0,0.00011232,2]
[325154929,1714542647852,-500.0,0.00011232,2]
[325154930,1714542647861,-635.93,0.00011232,2]
[325154931,1714542647871,-500.0,0.00011232,2]
[325154932,1714542647881,-500.0,0.00011232,2]
[325154934,1714542647890,-669.77,0.00011232,2]
[325154936,1714542647899,-1625.73,0.00011232,2]
[325154938,1714542647908,-500.0,0.00011232,2]
[325154940,1714542647917,-500.0,0.00011232,2]
[325154942,1714542647928,-500.0,0.00011232,2]
[325154943,1714542647936,-500.0,0.00011232,2]
[325154944,1714542647946,-500.0,0.00011232,2]
[325154945,1714542647955,-500.0,0.00011232,2]
[325154946,1714542647966,-500.0,0.00011232,2]
[325154947,1714542647976,-584.18,0.00011232,2]
[325154948,1714542647986,-500.0,0.00011232,2]
[325154949,1714542647996,-500.0,0.00011232,2]
[325154950,1714542648005,-571.47,0.00011232,2]
[325154951,1714542648015,-500.0,0.00011232,2]
[325154952,1714542648024,-500.0,0.00011232,2]
[325154953,1714542648034,-500.0,0.00011232,2]
[325154954,1714542648043,-500.0,0.00011232,2]
[325154955,1714542648052,-500.0,0.00011232,2]
[325154956,1714542648062,-509.38281339,0.00011232,2]
[325154957,1714542648071,-500.0,0.00011232,2]
[325154958,1714542648081,-586.79,0.00011232,2]
[325154959,1714542648091,-500.0,0.00011232,2]
[325154960,1714542648101,-514.49747381,0.00011232,2]
[325154961,1714542648110,-500.0,0.00011232,2]
[325154962,1714542648120,-500.0,0.00011232,2]
[325154963,1714542648129,-500.0,0.00011232,2]
[325154964,1714542648138,-500.0,0.00011232,2]
[325154965,1714542648147,-150.0,0.00011232,2]
[325154966,1714542648157,-180.88,0.00011232,2]
[325154967,1714542648166,-500.0,0.00011232,2]
[325154968,1714542648177,-500.0,0.00011232,2]
[325154969,1714542648187,-500.0,0.00011232,2]
[325154970,1714542648197,-500.0,0.00011232,2]
[325154971,1714542648208,-500.0,0.00011232,2]
[325154972,1714542648220,-500.0,0.00011232,2]
[325154973,1714542648230,-500.0,0.00011232,2]
[325154974,1714542648240,-500.0,0.00011232,2]
[325154975,1714542648251,-500.0,0.00011232,2]
[325154976,1714542648260,-500.0,0.00011232,2]
[325154977,1714542648269,-500.0,0.00011232,2]
[325154978,1714542648279,-500.0,0.00011232,2]
[325154979,1714542648290,-500.0,0.00011232,2]
[325154980,1714542648300,-541.44413901,0.00011232,2]
[325154981,1714542648310,-500.0,0.00011232,2]
[325154982,1714542648319,-500.0,0.00011232,2]
[325154983,1714542648329,-500.0,0.00011232,2]
[325154984,1714542648338,-246.27748349,0.00011232,2]
[325154985,1714542648347,-581.79,0.00011232,2]
[325154986,1714542648356,-500.0,0.00011232,2]
[325154987,1714542648366,-288.10196404,0.00011232,2]
[325154988,1714542648375,-500.0,0.00011232,2]
[325154989,1714542648384,-500.0,0.00011232,2]
[325154990,1714542648393,-500.0,0.00011232,2]
[325154991,1714542648403,-500.0,0.00011232,2]
[325154992,1714542648412,-500.0,0.00011232,2]
[325154993,1714542648421,-716.58,0.00011232,2]
[325154994,1714542648434,-500.0,0.00011232,2]
[325154995,1714542648443,-500.0,0.00011232,2]
[325154996,1714542648453,-500.0,0.00011232,2]
[325154997,1714542648462,-500.0,0.00011232,2]
[325154998,1714542648471,-500.0,0.00011232,2]
[325154999,1714542648481,-369.76909602,0.00011232,2]
[325155000,1714542648490,-500.0,0.00011232,2]
[325155001,1714542648499,-500.0,0.00011232,2]
[325155002,1714542648509,-500.0,0.00011232,2]
[325155003,1714542648518,-500.0,0.00011232,2]
[325155004,1714542648528,-470.59,0.00011232,2]
[325155005,1714542648538,-500.0,0.00011232,2]
[325155006,1714542648548,-500.0,0.00011232,2]
[325155007,1714542648557,-558.04598344,0.00011232,2]
[325155008,1714542648566,-500.0,0.00011232,2]
[325155009,1714542648576,-500.0,0.00011232,2]
[325155010,1714542648586,-500.0,0.00011232,2]
[325155011,1714542648596,-500.0,0.00011232,2]
[325155012,1714542648605,-500.0,0.00011232,2]
[325155013,1714542648615,-500.0,0.00011232,2]
[325155014,1714542648625,-500.0,0.00011232,2]
[325155015,1714542648634,-500.0,0.00011232,2]
[325155016,1714542648643,-500.0,0.00011232,2]
[325155017,1714542648652,-500.0,0.00011232,2]
[325155018,1714542648661,-500.0,0.00011232,2]
[325155019,1714542648670,-500.0,0.00011232,2]
[325155020,1714542648681,-500.0,0.00011232,2]
[325155021,1714542648690,-480.1547733,0.00011232,2]
[325155022,1714542648700,-500.0,0.00011232,2]
[325155023,1714542648709,-500.0,0.00011232,2]
[325155024,1714542648719,-500.0,0.00011232,2]
[325155025,1714542648728,-500.0,0.00011232,2]
[325155026,1714542648738,-361.70087368,0.00011232,2]
[325155027,1714542648747,-500.0,0.00011232,2]
[325155028,1714542648756,-500.0,0.00011232,2]
[325155029,1714542648766,-500.0,0.00011232,2]
[325155030,1714542648775,-500.0,0.00011232,2]
[325155031,1714542648785,-500.0,0.00011232,2]
[325155033,1714542648794,-500.0,0.00011232,2]
[325155035,1714542648804,-468.88,0.00011232,2]
[325155036,1714542648813,-500.0,0.00011232,2]
[325155037,1714542648823,-500.0,0.00011232,2]
[325155038,1714542648832,-500.0,0.00011232,2]
[325155039,1714542648841,-500.0,0.00011232,2]
[325155040,1714542648850,-406.62,0.00011232,2]
[325155041,1714542648859,-500.0,0.00011232,2]
[325155042,1714542648868,-500.0,0.00011232,2]
[325155043,1714542648877,-500.0,0.00011232,2]
[325155044,1714542648886,-500.0,0.00011232,2]
[325155045,1714542648895,-500.0,0.00011232,2]
[325155046,1714542648904,-506.53154918,0.00011232,2]
[325155047,1714542648914,-500.0,0.00011232,2]
[325155048,1714542648923,-155.62672213,0.00011232,2]
[325155049,1714542648934,-500.0,0.00011232,2]
[325155050,1714542648943,-500.0,0.00011232,2]
[325155051,1714542648952,-500.0,0.00011232,2]
[325155052,1714542648962,-704.22,0.00011232,2]
[325155053,1714542648971,-505.12941601,0.00011232,2]
[325155054,1714542648980,-500.0,0.00011232,2]
[325155055,1714542648989,-500.0,0.00011232,2]
[325155056,1714542648998,-500.0,0.00011232,2]
[325155057,1714542649008,-500.0,0.00011232,2]
[325155058,1714542649017,-500.0,0.00011232,2]
[325155059,1714542649028,-500.0,0.00011232,2]
[325155060,1714542649038,-500.0,0.00011232,2]
[325155061,1714542649048,-500.0,0.00011232,2]
[325155062,1714542649059,-1776.56,0.00011232,2]
[325155063,1714542649069,-500.0,0.00011232,2]
[325155064,1714542649078,-500.0,0.00011232,2]
[325155065,1714542649088,-500.0,0.00011232,2]
[325155066,1714542649097,-500.0,0.00011232,2]
[325155067,1714542649107,-500.0,0.00011232,2]
[325155068,1714542649122,-500.0,0.00011232,2]
[325155069,1714542649131,-500.0,0.00011232,2]
[325155070,1714542649140,-500.0,0.00011232,2]
[325155071,1714542649149,-500.0,0.00011232,2]
[325155072,1714542649158,-500.0,0.00011232,2]
[325155073,1714542649167,-500.0,0.00011232,2]
[325155074,1714542649176,-500.0,0.00011232,2]
[325155075,1714542649186,-686.3,0.00011232,2]
[325155076,1714542649194,-500.0,0.00011232,2]
[325155077,1714542649209,-500.0,0.00011232,2]
[325155078,1714542649218,-500.0,0.00011232,2]
[325155079,1714542649227,-500.0,0.00011232,2]
[325155080,1714542649236,-500.0,0.00011232,2]
[325155081,1714542649246,-626.52,0.00011232,2]
[325155082,1714542649255,-500.0,0.00011232,2]
[325155083,1714542649264,-1184.92,0.00011232,2]
[325155084,1714542649273,-500.0,0.00011232,2]
[325155085,1714542649283,-500.0,0.00011232,2]
[325155086,1714542649293,-500.0,0.00011232,2]
[325155087,1714542649302,-500.0,0.00011232,2]
[325155088,1714542649312,-699.23,0.00011232,2]
[325155089,1714542649322,-500.0,0.00011232,2]
[325155090,1714542649331,-500.0,0.00011232,2]
[325155091,1714542649340,-500.0,0.00011232,2]
[325155092,1714542649349,-500.0,0.00011232,2]
[325155093,1714542649358,-500.0,0.00011232,2]
[325155094,1714542649367,-500.0,0.00011232,2]
[325155095,1714542649376,-7170.82,0.00011232,2]
[325155096,1714542649385,-589.48,0.00011232,2]
[325155097,1714542649394,-500.0,0.00011232,2]
[325155098,1714542649403,-625.52,0.00011232,2]
[325155099,1714542649412,-643.14,0.00011232,2]
[325155100,1714542649422,-500.0,0.00011232,2]
[325155101,1714542649432,-809.92,0.00011232,2]
[325155102,1714542649441,-500.0,0.00011232,2]
[325155103,1714542649450,-500.0,0.00011232,2]
[325155104,1714542649459,-500.0,0.00011232,2]
[325155105,1714542649468,-500.0,0.00011232,2]
[325155106,1714542649477,-500.0,0.00011232,2]
[325155107,1714542649486,-500.0,0.00011232,2]
[325155108,1714542649495,-697.39,0.00011232,2]
[325155109,1714542649505,-500.0,0.00011232,2]
[325155110,1714542649514,-1650.0,0.00011232,2]
[325155111,1714542649569,-7789.17,0.00011232,2]
[325155112,1714542649578,-500.0,0.00011232,2]
[325155113,1714542649587,-500.0,0.00011232,2]
[325155114,1714542649597,-500.0,0.00011232,2]
[325155115,1714542649606,-500.0,0.00011232,2]
[325155116,1714542649615,-3346.94,0.00011232,2]
[325155117,1714542649624,-500.0,0.00011232,2]
[325155118,1714542649634,-724.59,0.00011232,2]
[325155119,1714542649643,-500.0,0.00011232,2]
[325155120,1714542649652,-500.0,0.00011232,2]
[325155121,1714542649662,-585.15,0.00011232,2]
[325155122,1714542649671,-549.53,0.00011232,2]
[325155123,1714542649681,-500.0,0.00011232,2]
[325155124,1714542649691,-500.0,0.00011232,2]
[325155125,1714542649700,-500.0,0.00011232,2]
[325155126,1714542649709,-711.11,0.00011232,2]
[325155127,1714542649719,-1021.06,0.00011232,2]
[325155128,1714542649728,-500.0,0.00011232,2]
[325155129,1714542649738,-500.0,0.00011232,2]
[325155130,1714542649748,-1018.7,0.00011232,2]
[325155131,1714542649757,-500.0,0.00011232,2]
[325155132,1714542649766,-500.0,0.00011232,2]
[325155133,1714542649775,-3038.17,0.00011232,2]
[325155134,1714542649785,-500.0,0.00011232,2]
[325155135,1714542649794,-500.0,0.00011232,2]
[325155136,1714542649803,-500.0,0.00011232,2]
[325155137,1714542649812,-500.0,0.00011232,2]
[325155138,1714542649821,-500.0,0.00011232,2]
[325155139,1714542649831,-591.4,0.00011232,2]
[325155140,1714542649839,-500.0,0.00011232,2]
[325155141,1714542649849,-1962.87,0.00011232,2]
[325155142,1714542649858,-500.0,0.00011232,2]
[325155143,1714542649867,-500.0,0.00011232,2]
[325155144,1714542649876,-500.0,0.00011232,2]
[325155145,1714542649885,-1298.52,0.00011232,2]
[325155146,1714542649894,-1337.7,0.00011232,2]
[325155147,1714542649903,-500.0,0.00011232,2]
[325155148,1714542649913,-500.0,0.00011232,2]
[325155149,1714542649922,-500.0,0.00011232,2]
[325155150,1714542649932,-500.0,0.00011232,2]
[325155151,1714542649940,-500.0,0.00011232,2]
[325155152,1714542649950,-504.15208414,0.00011232,2]
[325155153,1714542649960,-500.0,0.00011232,2]
[325155154,1714542649969,-500.0,0.00011232,2]
[325155155,1714542649978,-500.0,0.00011232,2]
[325155156,1714542649987,-500.0,0.00011232,2]
[325155157,1714542649996,-500.0,0.00011232,2]
[325155158,1714542650005,-1264.24,0.00011232,2]
[325155159,1714542650014,-1069.93,0.00011232,2]
[325155160,1714542650023,-500.0,0.00011232,2]
[325155161,1714542650031,-582.27,0.00011232,2]
[325155162,1714542650041,-500.0,0.00011232,2]
[325155163,1714542650050,-500.0,0.00011232,2]
[325155164,1714542650059,-500.0,0.00011232,2]
[325155165,1714542650067,-710.13,0.00011232,2]
[325155166,1714542650077,-500.0,0.00011232,2]
[325155167,1714542650086,-500.0,0.00011232,2]
[325155168,1714542650095,-500.0,0.00011232,2]
[325155169,1714542650104,-500.0,0.00011232,2]
[325155170,1714542650113,-500.0,0.00011232,2]
[325155171,1714542650122,-690.32,0.00011232,2]
[325155172,1714542650131,-500.0,0.00011232,2]
[325155173,1714542650140,-500.0,0.00011232,2]
[325155174,1714542650149,-738.69,0.00011232,2]
[325155175,1714542650158,-500.0,0.00011232,2]
[325155176,1714542650167,-500.0,0.00011232,2]
[325155177,1714542650175,-632.98401021,0.00011232,2]
[325155178,1714542650184,-500.0,0.00011232,2]
[325155179,1714542650194,-430.49249687,0.00011232,2]
[325155180,1714542650204,-500.0,0.00011232,2]
[325155181,1714542650216,-500.0,0.00011232,2]
[325155182,1714542650225,-500.0,0.00011232,2]
[325155183,1714542650234,-500.0,0.00011232,2]
[325155184,1714542650243,-2161.38,0.00011232,2]
[325155185,1714542650251,-4905.9,0.00011232,2]
[325155186,1714542650262,-966.37,0.00011232,2]
[325155187,1714542650271,-500.0,0.00011232,2]
[325155188,1714542650279,-1948.4,0.00011232,2]
[325155189,1714542650289,-759.28,0.00011232,2]
[325155190,1714542650298,-500.0,0.00011232,2]
[325155191,1714542650307,-1275.71,0.00011232,2]
[325155192,1714542650316,-500.0,0.00011232,2]
[325155193,1714542650325,-500.0,0.00011232,2]
[325155194,1714542650334,-758.67,0.00011232,2]
[325155195,1714542650343,-512.11980711,0.00011232,2]
[325155196,1714542650352,-247.63213052,0.00011232,2]
[325155197,1714542650361,-500.0,0.00011232,2]
[325155198,1714542650370,-886.96,0.00011232,2]
[325155199,1714542650379,-500.0,0.00011232,2]
[325155200,1714542650388,-500.0,0.00011232,2]
[325155201,1714542650397,-500.0,0.00011232,2]
[325155202,1714542650406,-2677.35,0.00011232,2]
[325155203,1714542650415,-500.0,0.00011232,2]
[325155204,1714542650424,-500.0,0.00011232,2]
[325155205,1714542650434,-500.0,0.00011232,2]
[325155206,1714542650443,-500.0,0.00011232,2]
[325155207,1714542650452,-157.70483649,0.00011232,2]
[325155208,1714542650461,-1235.88,0.00011232,2]
[325155209,1714542650470,-500.0,0.00011232,2]
[325155210,1714542650479,-866.09,0.00011232,2]
[325155211,1714542650487,-500.0,0.00011232,2]
[325155212,1714542650497,-500.0,0.00011232,2]
[325155213,1714542650506,-1072.35,0.00011232,2]
[325155214,1714542650515,-520.23921093,0.00011232,2]
[325155215,1714542650523,-1288.28,0.00011232,2]
[325155216,1714542650532,-272.43,0.00011232,2]
[325155217,1714542650541,-500.0,0.00011232,2]
[325155218,1714542650551,-544.66,0.00011232,2]
[325155219,1714542650560,-500.0,0.00011232,2]
[325155220,1714542650569,-500.0,0.00011232,2]
[325155221,1714542650579,-3316.24,0.00011232,2]
[325155222,1714542650588,-365.25065093,0.00011232,2]
[325155223,1714542650599,-1241.61,0.00011232,2]
[325155224,1714542650608,-500.0,0.00011232,2]
[325155225,1714542650618,-500.0,0.00011232,2]
[325155226,1714542650628,-500.0,0.00011232,2]
[325155227,1714542650638,-500.0,0.00011232,2]
[325155228,1714542650647,-165.92819731,0.00011232,2]
[325155229,1714542650657,-500.0,0.00011232,2]
[325155230,1714542650666,-500.0,0.00011232,2]
[325155231,1714542650675,-2504.85,0.00011232,2]
[325155232,1714542650686,-500.0,0.00011232,2]
[325155233,1714542650695,-500.0,0.00011232,2]
[325155234,1714542650704,-500.0,0.00011232,2]
[325155235,1714542650713,-810.87,0.00011232,2]
[325155236,1714542650722,-500.0,0.00011232,2]
[325155237,1714542650731,-500.0,0.00011232,2]
[325155238,1714542650740,-500.0,0.00011232,2]
[325155239,1714542650749,-500.0,0.00011232,2]
[325155240,1714542650759,-507.55,0.00011232,2]
[325155241,1714542650768,-870.27,0.00011232,2]
[325155242,1714542650778,-500.0,0.00011232,2]
[325155243,1714542650787,-500.0,0.00011232,2]
[325155244,1714542650796,-3432.19,0.00011232,2]
[325155245,1714542650804,-496.9194739,0.00011232,2]
[325155246,1714542650813,-500.0,0.00011232,2]
[325155247,1714542650822,-1019.03,0.00011232,2]
[325155248,1714542650831,-935.9,0.00011232,2]
[325155249,1714542650841,-563.78,0.00011232,2]
[325155250,1714542650850,-2956.33,0.00011232,2]
[325155251,1714542650860,-1026.81,0.00011232,2]
[325155252,1714542650869,-3294.14,0.00011232,2]
[325155253,1714542650878,-254.97,0.00011232,2]
[325155254,1714542650887,-500.0,0.00011232,2]
[325155255,1714542650897,-500.0,0.00011232,2]
[325155256,1714542650907,-500.0,0.00011232,2]
[325155257,1714542650917,-500.0,0.00011232,2]
[325155258,1714542650929,-1610.66,0.00011232,2]
[325155259,1714542650940,-500.0,0.00011232,2]
[325155260,1714542650951,-500.0,0.00011232,2]
[325155261,1714542650961,-398.68,0.00011232,2]
[325155262,1714542650970,-1323.01,0.00011232,2]
[325155263,1714542650979,-6150.44,0.00011232,2]
[325155264,1714542650988,-1965.64,0.00011232,2]
[325155265,1714542650997,-494.78758897,0.00011232,2]
[325155266,1714542651007,-500.0,0.00011232,2]
[325155267,1714542651016,-500.0,0.00011232,2]
[325155268,1714542651025,-500.0,0.00011232,2]
[325155269,1714542651035,-500.0,0.00011232,2]
[325155270,1714542651044,-500.34,0.00011232,2]
[325155271,1714542651053,-11884.42,0.00011232,2]
[325155272,1714542651062,-500.0,0.00011232,2]
[325155273,1714542651071,-500.0,0.00011232,2]
[325155274,1714542651080,-1478.72,0.00011232,2]
[325155275,1714542651089,-582.26,0.00011232,2]
[325155276,1714542651098,-1095.18,0.00011232,2]
[325155277,1714542651107,-419.42777763,0.00011232,2]
[325155278,1714542651117,-12067.93,0.00011232,2]
[325155279,1714542651126,-500.0,0.00011232,2]
[325155280,1714542651137,-1361.3,0.00011232,2]
[325155281,1714542651146,-500.0,0.00011232,2]
[325155282,1714542651155,-500.0,0.00011232,2]
[325155283,1714542651165,-671.59,0.00011232,2]
[325155284,1714542651173,-500.0,0.00011232,2]
[325155285,1714542651186,-803.19,0.00011232,2]
[325155286,1714542651194,-500.0,0.00011232,2]
[325155287,1714542651207,-510.64,0.00011232,2]
[325155288,1714542651215,-500.0,0.00011232,2]
[325155289,1714542651224,-500.0,0.00011232,2]
[325155290,1714542651233,-1131.44,0.00011232,2]
[325155291,1714542651242,-5313.27,0.00011232,2]
[325155292,1714542651253,-1967.48,0.00011232,2]
[325155293,1714542651263,-741.95,0.00011232,2]
[325155294,1714542651272,-500.0,0.00011232,2]
[325155295,1714542651280,-620.83,0.00011232,2]
[325155296,1714542651290,-500.0,0.00011232,2]
[325155297,1714542651300,-523.96224467,0.00011232,2]
[325155298,1714542651308,-320.71,0.00011232,2]
[325155299,1714542651318,-500.0,0.00011232,2]
[325155300,1714542651327,-500.0,0.00011232,2]
[325155301,1714542651336,-500.0,0.00011232,2]
[325155302,1714542651346,-500.0,0.00011232,2]
[325155303,1714542651355,-12501.05,0.00011232,2]
[325155304,1714542651364,-500.0,0.00011232,2]
[325155305,1714542651373,-500.0,0.00011232,2]
[325155306,1714542651382,-500.0,0.00011232,2]
[325155307,1714542651391,-150.51007187,0.00011291,2]
[325155308,1714542651400,-500.0,0.00011499,2]
[325155309,1714542651409,-7613.9645,0.000115,2]
[325155310,1714542651417,-500.0,0.00011506,2]
[325155311,1714542651428,-500.0,0.00011506,2]
[325155312,1714542651437,-500.0,0.00011506,2]
[325155313,1714542651447,-210.17415919,0.00011506,2]
[325155314,1714542651456,-507.58,0.00011506,2]
[325155315,1714542651466,-500.0,0.00011506,2]
[325155316,1714542651475,-645.3779734,0.00011506,2]
[325155317,1714542651483,-262.67068539,0.00011506,2]
[325155318,1714542651493,-500.0,0.00011506,2]
[325155319,1714542651502,-407.39377125,0.00011506,2]
[325155320,1714542651511,-441.76933244,0.00011506,2]
[325155321,1714542651519,-500.0,0.00011506,2]
[325155322,1714542651529,-500.0,0.00011506,2]
[325155323,1714542651538,-500.0,0.00011506,2]
[325155324,1714542651547,-500.0,0.00011506,2]
[325155325,1714542651556,-500.0,0.00011506,2]
[325155326,1714542651566,-500.0,0.00011506,2]
[325155327,1714542651575,-500.0,0.00011506,2]
[325155328,1714542651584,-500.0,0.00011506,2]
[325155329,1714542651593,-500.0,0.00011506,2]
[325155330,1714542651603,-500.0,0.00011506,2]
[325155331,1714542651612,-500.0,0.00011506,2]
[325155332,1714542651621,-500.0,0.00011506,2]
[325155333,1714542651630,-205.6,0.00011506,2]
[325155334,1714542651639,-500.0,0.00011506,2]
[325155335,1714542651649,-500.0,0.00011506,2]
[325155336,1714542651658,-500.0,0.00011506,2]
[325155337,1714542651667,-500.0,0.00011506,2]
[325155338,1714542651679,-500.0,0.00011506,2]
[325155339,1714542651688,-500.0,0.00011506,2]
[325155340,1714542651697,-500.0,0.00011506,2]
[325155341,1714542651706,-500.0,0.00011506,2]
[325155342,1714542651715,-500.0,0.00011506,2]
[325155343,1714542651724,-500.0,0.00011506,2]
[325155344,1714542651734,-500.0,0.00011506,2]
[325155345,1714542651743,-500.0,0.00011506,2]
[325155346,1714542651752,-364.77587937,0.00011506,2]
[325155347,1714542651761,-211.3117055,0.00011506,2]
[325155348,1714542651770,-1188.74,0.00011506,2]
[325155349,1714542651779,-500.0,0.00011506,2]
[325155350,1714542651788,-500.0,0.00011506,2]
[325155351,1714542651797,-500.0,0.00011506,2]
[325155352,1714542651806,-500.0,0.00011506,2]
[325155353,1714542651816,-500.0,0.00011506,2]
[325155354,1714542651825,-500.0,0.00011506,2]
[325155355,1714542651834,-500.0,0.00011506,2]
[325155356,1714542651843,-500.0,0.00011506,2]
[325155357,1714542651852,-500.0,0.00011506,2]
[325155358,1714542651861,-500.0,0.00011506,2]
[325155359,1714542651870,-500.0,0.00011506,2]
[325155360,1714542651880,-500.0,0.00011506,2]
[325155361,1714542651889,-207.0,0.00011506,2]
[325155362,1714542651898,-500.0,0.00011506,2]
[325155363,1714542651907,-500.0,0.00011506,2]
[325155364,1714542651916,-500.0,0.00011506,2]
[325155365,1714542651925,-500.0,0.00011506,2]
[325155366,1714542651935,-669.77,0.00011506,2]
[325155367,1714542651944,-1625.73,0.00011506,2]
[325155368,1714542651953,-500.0,0.00011506,2]
[325155369,1714542651961,-500.0,0.00011506,2]
[325155370,1714542651970,-500.0,0.00011506,2]
[325155371,1714542651980,-500.0,0.00011506,2]
[325155372,1714542651989,-500.0,0.00011506,2]
[325155373,1714542651998,-500.0,0.00011506,2]
[325155374,1714542652006,-500.0,0.00011506,2]
[325155375,1714542652015,-584.18,0.00011506,2]
[325155376,1714542652025,-500.0,0.00011506,2]
[325155377,1714542652034,-500.0,0.00011506,2]
[325155378,1714542652043,-571.47,0.00011506,2]
[325155379,1714542652052,-500.0,0.00011506,2]
[325155380,1714542652061,-500.0,0.00011506,2]
[325155381,1714542652071,-500.0,0.00011506,2]
[325155382,1714542652080,-551.54261821,0.00011506,2]
[325155383,1714542652090,-500.0,0.00011506,2]
[325155384,1714542652101,-500.0,0.00011506,2]
[325155385,1714542652111,-586.79,0.00011506,2]
[325155386,1714542652123,-500.0,0.00011506,2]
[325155387,1714542652132,-500.0,0.00011506,2]
[325155388,1714542652142,-500.0,0.00011506,2]
[325155389,1714542652152,-500.0,0.00011506,2]
[325155390,1714542652162,-500.0,0.00011506,2]
[325155391,1714542652172,-150.0,0.00011506,2]
[325155392,1714542652182,-249.2,0.00011506,2]
[325155393,1714542652191,-500.0,0.00011506,2]
[325155394,1714542652201,-500.0,0.00011506,2]
[325155395,1714542652212,-500.0,0.00011506,2]
[325155396,1714542652223,-500.0,0.00011506,2]
[325155397,1714542652234,-500.0,0.00011506,2]
[325155398,1714542652244,-456.82033662,0.00011506,2]
[325155399,1714542652255,-500.0,0.00011506,2]
[325155400,1714542652264,-500.0,0.00011506,2]
[325155401,1714542652274,-365.64350646,0.00011506,2]
[325155402,1714542652283,-500.0,0.00011506,2]
[325155403,1714542652294,-500.0,0.00011506,2]
[325155404,1714542652303,-500.0,0.00011506,2]
[325155405,1714542652313,-367.7,0.00011506,2]
[325155406,1714542652322,-500.0,0.00011506,2]
[325155407,1714542652331,-500.0,0.00011506,2]
[325155408,1714542652342,-400.44313668,0.00011506,2]
[325155409,1714542652351,-500.0,0.00011506,2]
[325155410,1714542652360,-150.59468618,0.00011506,2]
[325155411,1714542652370,-500.0,0.00011506,2]